[Event "24th Hoogeschool Zeeland 2022"]
[Site "Vlissingen"]
[Date "2022.08.06"]
[Round "1.1"]
[White "Fischer, Gerd"]
[Black "Ponomariov, Ruslan"]
[Result "0-1"]
[ECO "A07"]
[WhiteElo "2085"]
[BlackElo "2642"]
[Annotator "TA"]
[PlyCount "58"]
[EventDate "2022.08.05"]
[EventType "swiss"]
[EventCountry "NED"]
[SourceTitle "playchess.com"]
[Source "ChessBase"]
[SourceQuality "1"]
[TimeControl "40/5400+30:1800+30"]

{[%evp 9,58,8,-2,0,0,-16,5,-13,-9,-29,-29,-29,-33,-38,-29,-31,-24,-28,-47,-36,-22,-85,-77,-105,-109,-106,-55,-122,-127,-129,-123,-214,-219,-201,-199,-212,-213,-327,-202,-220,-216,-212,-189,-197,-174,-213,-193,-286,-181,-365,-280]} 1. Nf3 {[%emt 0:00:04]} g6 {[%emt 0:00:58]} 2. g3 {[%emt 0:00:21]} Bg7 {[%emt 0:00:28]} 3. Bg2 {[%emt 0:02:07]} e5 {[%emt 0:04:01]} 4. d3 {[%emt 0:03:05]} d5 {[%emt 0:00:59]} 5. O-O {[%emt 0:01:34]} Ne7 {[%emt 0:02:09]} 6. c3 {[%emt 0:01:56] A07: Réti Opening: New York and Capablanca Systems.} O-O {[%emt 0:01:50]} 7. b4 {[%emt 0:14:27] [#]} c6 $146 {[%emt 0:05:37]} ({Predecessor:} 7... e4 8. dxe4 dxe4 9. Nd4 Nf5 10. e3 Nd6 11. Nd2 Re8 12. a4 Nc6 13. Nxc6 bxc6 14. Nxe4 Nxe4 15. Qxd8 Rxd8 16. Bxe4 {½-½ (34) Pantsulaia,L (2586)-Yilmaz,M (2633) Heraklion 2017}) 8. Qc2 {[%emt 1:10:56] The position is equal.} a5 {[%emt 0:02:01]} 9. Bb2 {[%emt 0:00:00]} axb4 {[%emt 0:09:23]} 10. cxb4 {[%emt 0:00:00]} d4 {[%emt 0:00:08]} 11. Nbd2 {[%emt 0:00:00]} Nd5 {[%emt 0:01:25][%cal Be7d5,Bd5b6,Bb6a4,Ba4b2][%mdl 32]} 12. a3 {[%emt 0:00:00]} Be6 {[%emt 0:08:19]} 13. Nc4 {[%emt 0:00:00]} Nd7 {[%emt 0:00:26]} 14. e4 {[%emt 0:00:00]} N5b6 {[%emt 0:05:29]} 15. Nfd2 {[%emt 0:00:00]} (15. Nxb6 $11 Nxb6 16. a4) 15... Na4 $17 {[%emt 0:05:27]} 16. Na5 {[%emt 0:00:00]} Nxb2 {[%emt 0:06:25]} 17. Qxb2 {[%emt 0:00:00]} Qe7 {[%emt 0:00:40]} (17... Qc7 $17 18. f4 exf4 19. gxf4 Bh6) 18. Nac4 {[%emt 0:00:00]} ({Better is} 18. f4 $15) 18... b5 {[%emt 0:04:15]} 19. Na5 {[%emt 0:00:00]} Rfc8 {[%emt 0:00:18]} 20. Nab3 {[%emt 0:00:00]} (20. f4 $17 Nc5 21. Nxc6 Rxc6 22. bxc5) 20... c5 {[%emt 0:01:44]} 21. Nxc5 {[%emt 0:00:00]} Nxc5 {[%emt 0:01:27]} 22. bxc5 {[%emt 0:00:00]} Rxc5 {[%emt 0:00:12]} ({Worse is} 22... Qxc5 23. Rfc1 Qb6 24. Rxc8+ Bxc8 25. f4) 23. Rfc1 {[%emt 0:00:00]} (23. Nf3 $142) 23... Rac8 {[%emt 0:00:45]} 24. Rxc5 {[%emt 0:00:00]} Qxc5 {[%emt 0:00:06]} ({Stronger than} 24... Rxc5 25. a4 $17) 25. Rb1 {[%emt 0:00:00]} Qc3 {[%emt 0:04:06] Hoping for ...Bh6.} 26. Bf1 {[%emt 0:00:12]} Bd7 {[%emt 0:02:07]} 27. Nf3 {[%emt 0:02:04]} Ra8 {[%emt 0:01:43][%cal Bc8a8,Ba8a5,Ba5a4][%mdl 32]} 28. Qd2 {[%emt 0:02:56]} (28. Ne1 {is a better defense.}) 28... Ra5 {[%emt 0:32:02]} ({Don't blunder} 28... Qxa3 $2 29. Kg2 $19) 29. a4 $2 {[#]} (29. Qxc3 {keeps fighting.} dxc3 30. Rb3) 29... Rxa4 {[%emt 0:00:00] Weighted Error Value: White=0.39/Black=0.17 (very precise)} 0-1

[Event "24th Hoogeschool Zeeland 2022"]
[Site "Vlissingen"]
[Date "2022.08.06"]
[Round "1.2"]
[White "Van den Doel, Erik"]
[Black "Morssink, Pieter Jan"]
[Result "1-0"]
[ECO "A49"]
[WhiteElo "2589"]
[BlackElo "1920"]
[Annotator "TA"]
[PlyCount "61"]
[EventDate "2022.08.05"]
[EventType "swiss"]
[EventCountry "NED"]
[SourceTitle "playchess.com"]
[Source "ChessBase"]
[SourceQuality "1"]
[TimeControl "40/5400+30:1800+30"]

{[%evp 12,61,35,4,30,19,39,46,73,55,92,97,121,89,127,79,121,70,126,128,137,135,202,191,188,177,223,214,234,222,226,220,227,205,216,166,168,128,112,129,116,122,160,157,177,174,183,184,281,281,286,279]} 1. Nf3 {[%emt 0:00:06]} Nf6 {[%emt 0:00:07]} 2. g3 {[%emt 0:00:05]} g6 {[%emt 0:01:17]} 3. Bg2 {[%emt 0:00:06]} Bg7 {[%emt 0:00:07]} 4. O-O {[%emt 0:00:05]} O-O {[%emt 0:00:09]} 5. d4 {[%emt 0:00:04][%cal Bd2d4,Bd4d5][%mdl 32]} d6 {[%emt 0:00:46]} 6. a4 {[%emt 0:03:28][%cal Ba2a4,Ba4a5][%mdl 32]} Nc6 {[%emt 0:03:22]} 7. a5 {[%emt 0:03:46][%cal Oa5a6]} a6 {[%emt 0:00:42] A49: 1 d4 Nf6 2 Nf3 g6 3 g3: Anti-King's Indian systems.} 8. d5 {[%emt 0:01:47]} Nb8 {[%emt 0:00:47]} 9. c4 {[%emt 0:01:43]} e5 {[%emt 0:14:28] White is slightly better.} 10. Nc3 {[%emt 0:01:27] [#]} h6 $146 {[%emt 0:02:20]} ({Predecessor:} 10... Ne8 11. e4 Bg4 12. h3 Bxf3 13. Bxf3 f5 14. b4 Nd7 15. c5 Ndf6 16. Bg5 h6 {½-½ (34) Panelo Munoz,M (2379)-Perez Mitjans,O (2413) Sant Adria de Besos 2017}) 11. e4 {[%emt 0:01:42]} Kh7 {[%emt 0:02:57]} 12. c5 {[%emt 0:10:22]} Ne8 {[%emt 0:10:25]} 13. Be3 {[%emt 0:07:16]} (13. b4 $142 $1) 13... Nd7 {[%emt 0:01:53] [#]} 14. c6 {[%emt 0:06:32]} (14. b4 $1 $16) 14... bxc6 {[%emt 0:07:24]} ({Black should play} 14... Ndf6 $14) 15. dxc6 $16 {[%emt 0:00:13]} Ndf6 {[%emt 0:51:16]} 16. Nxe5 $1 {[%emt 0:00:46] 0x0.00144c772494dp-1022s more active pieces.} Qe7 {[%emt 0:00:00]} (16... Rb8 $16 {keeps fighting.} 17. Nc4 Be6) 17. Nd3 $18 {[%emt 0:04:10]} Ng4 {[%emt 0:00:00]} 18. Bd2 {[%emt 0:01:43]} Ne5 {[%emt 0:00:00]} (18... f5 {was necessary.} 19. Qe2 Qf7) 19. Nd5 {[%emt 0:02:09]} Qd8 {[%emt 0:00:00]} 20. Nxe5 {[%emt 0:04:06]} Bxe5 {[%emt 0:00:00]} 21. Qc1 {[%emt 0:00:37]} Bg7 {[%emt 0:00:00]} 22. Bc3 {[%emt 0:00:34]} Nf6 {[%emt 0:00:00]} 23. Nxf6+ {[%emt 0:02:26]} Bxf6 {[%emt 0:00:00]} 24. Bxf6 {[%emt 0:00:17]} Qxf6 {[%emt 0:00:00]} 25. Qc3 {[%emt 0:00:04]} Kg7 {[%emt 0:00:00]} 26. Ra4 {[%emt 0:03:14]} Re8 {[%emt 0:00:00]} 27. Rd4 {[%emt 0:03:55]} Re5 {[%emt 0:00:00] [#]} 28. b4 {[%emt 0:00:32] Inhibits Rc5.} Rb8 {[%emt 0:00:00]} 29. f4 {[%emt 0:02:08]} Reb5 {[%emt 0:00:00]} (29... Re8 $142 30. f5 gxf5) 30. Qd2 {[%emt 0:00:45]} Qe6 {[%emt 0:00:00]} 31. Rf3 {[%emt 0:39:52] Against Qb3.  Weighted Error Value: White=0.12 (very precise) /Black=0.27 (precise)} 1-0

[Event "24th Hoogeschool Zeeland 2022"]
[Site "Vlissingen"]
[Date "2022.08.06"]
[Round "1.3"]
[White "Westerweele, Henrik"]
[Black "Baklan, Vladimir"]
[Result "0-1"]
[ECO "B22"]
[WhiteElo "1919"]
[BlackElo "2589"]
[Annotator "TA"]
[PlyCount "112"]
[EventDate "2022.08.05"]
[EventType "swiss"]
[EventCountry "NED"]
[SourceTitle "playchess.com"]
[Source "ChessBase"]
[SourceQuality "1"]
[TimeControl "40/5400+30:1800+30"]

{[%evp 21,112,-37,-37,-38,-41,-42,-34,-40,-22,-30,-25,-39,-30,-53,93,77,87,88,76,0,15,5,26,39,27,27,29,31,43,30,31,-118,-63,-453,-113,-113,-113,-107,-111,-118,-134,-118,-118,-124,-121,-111,-88,-111,-75,-97,-76,-76,-77,-184,-172,-168,-159,-182,-178,-174,-136,-140,-142,-156,-158,-150,-122,-238,-225,-287,-265,-323,-284,-259,-258,-255,-252,-312,-310,-422,-357,-421,-383,-760,-740,-700,-559,-496,-487,-593,-574,-564,-412]} 1. e4 {[%emt 0:00:04][%cal Be2e4,Be4e5][%mdl 32]} c5 {[%emt 0:00:05]} 2. c3 {[%emt 0:00:41]} Nf6 {[%emt 0:00:12]} 3. e5 {[%emt 0:00:24]} Nd5 {[%emt 0:00:07]} 4. d4 {[%emt 0:00:13]} cxd4 {[%emt 0:00:07]} 5. Nf3 {[%emt 0:00:28]} d6 {[%emt 0:00:27]} 6. exd6 {[%emt 0:00:32]} Qxd6 {[%emt 0:01:53]} 7. cxd4 {[%emt 0:00:25]} Nc6 {[%emt 0:02:28]} 8. Nc3 {[%emt 0:01:49]} Bg4 {[%emt 0:01:07]} 9. Be2 {[%emt 0:01:22]} e6 {[%emt 0:01:23]} 10. O-O {[%emt 0:05:29]} Be7 {[%emt 0:01:08]} 11. Be3 {[%emt 0:10:24]} O-O {[%emt 0:01:27]} 12. Qd2 {[%emt 0:04:25] B22: Sicilian: 2 c3.} Rfd8 {[%emt 0:02:14]} 13. Rfd1 {[%emt 0:01:58]} Rac8 {[%emt 0:01:29]} 14. Rac1 {[%emt 0:06:06] Black is slightly better.} Qb8 {[%emt 0:03:02] [#]} 15. Nxd5 $146 {[%emt 0:14:27]} ({Predecessor:} 15. h3 Bf5 16. Nxd5 Rxd5 17. Bc4 Rdd8 18. Bf4 Bd6 19. Bxd6 Qxd6 20. d5 Ne5 21. Nxe5 Qxe5 {1-0 (80) Stolwijk,C (1989)-Afek,Y (2313) Amsterdam 2013}) 15... Rxd5 {[%emt 0:00:17]} 16. Bf4 {[%emt 0:06:30]} Bd6 {[%emt 0:00:39]} 17. Bxd6 {[%emt 0:02:43]} Qxd6 {[%emt 0:00:12]} (17... Rxd6 $15 18. Qf4 Bxf3 19. Bxf3 Rcd8) 18. h3 $1 $16 {[%emt 0:03:37]} Bh5 {[%emt 0:02:59]} 19. g4 {[%emt 0:04:42]} Bg6 {[%emt 0:00:09]} 20. Ne5 {[%emt 0:02:03]} ({Better is} 20. Bc4 $16) 20... Qd8 {[%emt 0:06:40]} 21. Nxc6 {[%emt 0:08:45]} bxc6 {[%emt 0:00:34]} 22. Bf3 {[%emt 0:02:12]} Rd6 {[%emt 0:00:10]} 23. Rc5 {[%emt 0:01:08]} h6 {[%emt 0:02:49]} 24. Qc3 {[%emt 0:04:48]} Qh4 {[%emt 0:06:25]} 25. Kg2 {[%emt 0:04:09]} (25. Rxc6 $2 Rdxc6 26. Bxc6 Be4 27. Bxe4 Rxc3 28. bxc3 Qxh3 $19) 25... h5 {[%emt 0:02:45]} 26. d5 {[%emt 0:07:18]} (26. Qe3 $14 {keeps the upper hand.}) 26... exd5 {[%emt 0:07:37]} (26... hxg4 $17 27. Bxg4 Be4+ 28. Kg1 Qd8) 27. Rcxd5 $2 {[%emt 0:00:31][%mdl 8192] [#]} Rxd5 $2 {[%emt 0:00:38]} (27... cxd5 28. Qxc8+ Rd8 29. Qc7 $11) (27... hxg4 $1 $19 28. hxg4 Rxd5 29. Rxd5 {[#]} Be4 $1 {[%mdl 512]}) 28. Rxd5 $17 {[%emt 0:00:40][%cal Rg4h5]} hxg4 {[%emt 0:00:06]} 29. Bxg4 {[%emt 0:02:19]} Be4+ {[%emt 0:05:02]} ({Reject} 29... cxd5 $6 30. Qxc8+ Kh7 31. Bf3 $15) 30. f3 {[%emt 0:00:19]} Bxd5 {[%emt 0:01:38]} 31. Bxc8 {[%emt 0:00:08][%mdl 4096] Endgame KQB-KQB} Qd8 {[%emt 0:00:11]} ({Stronger than} 31... Bxa2 32. Qxc6 Qg5+ 33. Bg4 $15) 32. Ba6 {[%emt 0:01:27]} Qg5+ {[%emt 0:00:23]} 33. Kh2 {[%emt 0:01:19]} Qh5 {[%emt 0:06:26] Black is more active.} 34. Kg3 {[%emt 0:01:14]} Qg6+ {[%emt 0:00:48]} 35. Kh2 {[%emt 0:00:49]} Qd6+ {[%emt 0:00:19]} 36. Kg2 {[%emt 0:00:36]} Bxa2 {[%emt 0:00:13]} 37. Qe3 {[%emt 0:01:20]} (37. b3 $17) 37... c5 {[%emt 0:01:35]} 38. Bd3 {[%emt 0:00:51] Against Qg6+} Be6 {[%emt 0:00:40]} 39. Be4 {[%emt 0:00:49]} Kf8 {[%emt 0:03:45]} 40. Qc3 {[%emt 0:00:54]} Qb6 {[%emt 0:01:07]} 41. h4 {[%emt 0:06:20]} f6 {[%emt 0:00:14]} 42. h5 {[%emt 0:01:23]} Qb4 {[%emt 0:01:09] ...Qxc3 is the strong threat.} 43. Qc1 {[%emt 0:01:15]} Ke7 {[%emt 0:00:10]} 44. Kg3 {[%emt 0:02:27]} (44. b3 $17) 44... Qd4 {[%emt 0:02:47]} 45. Qa1 {[%emt 0:03:07]} a5 {[%emt 0:00:46][%cal Ba7a5,Ba5a4][%mdl 32]} 46. Qe1 {[%emt 0:04:22]} Kd6 {[%emt 0:05:39] aiming for ...f5.} ({Wrong is} 46... Qxb2 $2 47. Qxa5 Qe5+ 48. Kg2 $19) (46... Qe5+ $2 47. f4 Qxh5 48. f5 Qg5+ 49. Kh3 $19) 47. Qc1 {[%emt 0:02:13]} a4 {[%emt 0:01:42]} 48. Kg2 {[%emt 0:01:12]} Ke7 {[%emt 0:01:12]} 49. Kg3 {[%emt 0:05:41]} Qe5+ {[%emt 0:00:24]} 50. Kf2 {[%emt 0:04:16]} Qxh5 {[%emt 0:00:24]} 51. Qc3 {[%emt 0:00:06]} Qe5 {[%emt 0:01:22]} 52. Qc2 {[%emt 0:01:54]} (52. Qxe5 fxe5 53. Ke3) 52... f5 $19 {[%emt 0:04:19] Black is clearly winning.} 53. Bd3 {[%emt 0:01:32]} Qd4+ {[%emt 0:00:18]} 54. Kg2 {[%emt 0:00:42]} Kf6 {[%emt 0:00:10] Strongly threatening ...Bb3.} 55. Bb5 {[%emt 0:00:44]} Bd5 {[%emt 0:01:14]} 56. Be2 {[%emt 0:01:18]} Ke5 {[%emt 0:55:24] Weighted Error Value: White=0.48/Black=0.30} 0-1

[Event "24th Hoogeschool Zeeland 2022"]
[Site "Vlissingen"]
[Date "2022.08.06"]
[Round "1.4"]
[White "Harsha Bharathakoti"]
[Black "Klein, Jorik"]
[Result "1-0"]
[ECO "E92"]
[WhiteElo "2547"]
[BlackElo "1918"]
[Annotator "TA"]
[PlyCount "69"]
[EventDate "2022.08.05"]
[EventType "swiss"]
[EventCountry "NED"]
[SourceTitle "playchess.com"]
[Source "ChessBase"]
[SourceQuality "1"]
[TimeControl "40/5400+30:1800+30"]

{[%evp 26,69,75,79,78,75,74,53,54,64,82,57,147,145,138,60,50,55,68,78,147,144,142,143,135,135,212,200,323,253,416,410,485,450,857,722,835,811,811,775,935,920,886,884,1011,835]} 1. Nf3 {[%emt 0:00:28]} Nf6 {[%emt 0:00:11]} 2. c4 {[%emt 0:00:49]} g6 {[%emt 0:00:41]} 3. Nc3 {[%emt 0:00:17]} Bg7 {[%emt 0:00:18]} 4. e4 {[%emt 0:00:34]} d6 {[%emt 0:00:20]} 5. d4 {[%emt 0:00:18]} O-O {[%emt 0:00:16]} 6. Be2 {[%emt 0:00:07]} e5 {[%emt 0:00:27]} 7. Be3 {[%emt 0:00:08]} Nc6 {[%emt 0:20:13]} 8. d5 {[%emt 0:01:53]} Ne7 {[%emt 0:00:07]} 9. Nd2 {[%emt 0:00:08]} Nd7 {[%emt 0:00:57]} 10. b4 {[%emt 0:05:56]} f5 {[%emt 0:04:35]} 11. f3 {[%emt 0:00:08]} Nf6 {[%emt 0:08:58][%cal Bd7f6,Bf6h5,Bh5f4][%mdl 32]} 12. c5 {[%emt 0:06:25]} Nh5 {[%emt 0:02:58] The main line 12...Nh5 scores better than 12...f4.} 13. Nc4 {[%emt 0:06:14]} Nf4 {[%emt 0:08:10]} 14. O-O {[%emt 0:05:15]} Rf6 {[%emt 0:06:40] [#] E92: King's Indian: Classical: 6 Be2 e5: 7 dxe5, 7 Be3 and Petrosian System without 7...Nbd7.} 15. Rc1 $146 {[%emt 0:32:56]} ({Predecessor:} 15. cxd6 cxd6 16. Nb5 g5 17. Nxa7 Rxa7 18. Bxa7 Rh6 19. Nb6 Qe8 20. Rc1 Qh5 21. Nxc8 Qxh2+ 22. Kf2 Nxg2 23. Nxe7+ Kf7 24. Rh1 {1-0 (24) Solomon,K (2215)-Boraso,A (1960) Chioggia 2011}) 15... g5 {[%emt 0:13:36]} 16. cxd6 {[%emt 0:00:14]} cxd6 {[%emt 0:00:05] White is slightly better.} 17. Nb5 {[%emt 0:00:20]} b6 {[%emt 0:09:14]} 18. a4 {[%emt 0:11:51]} Ba6 {[%emt 0:05:24]} (18... Rg6 $14) 19. Bxf4 $16 {[%emt 0:05:49]} gxf4 {[%emt 0:00:12]} 20. Bd3 {[%emt 0:00:03] White is more active.} (20. Nca3 $1 $16) 20... Bxb5 {[%emt 0:10:59]} 21. axb5 {[%emt 0:00:05]} Rc8 {[%emt 0:00:04]} 22. exf5 {[%emt 0:03:22]} Nxf5 {[%emt 0:04:14]} ({Black should play} 22... Qd7) 23. Bxf5 {[%emt 0:00:11]} Rxf5 {[%emt 0:00:02]} 24. Qd3 {[%emt 0:00:25]} Rf7 {[%emt 0:01:10] [#]} 25. Nd2 $1 {[%emt 0:00:12]} Rfc7 {[%emt 0:01:11] [#]} (25... Rxc1 $16 26. Rxc1 Bf8) 26. Rc6 $1 $18 {[%emt 0:00:08]} Bf8 {[%emt 0:01:24]} (26... Rb8 {might work better.} 27. Qf5 Rf7) 27. Qf5 {[%emt 0:03:38] Strongly threatening Ne4.} Rxc6 $2 {[%emt 0:00:49]} (27... Ra8 {keeps fighting.} 28. Ne4 Rf7) 28. dxc6 {[%emt 0:02:52]} ({Less strong is} 28. bxc6 Ra8 29. b5 Be7 $18) 28... Rc7 {[%emt 0:00:31]} 29. Ne4 {[%emt 0:01:46] White is clearly winning.} Rf7 {[%emt 0:00:34] Inhibits Nf6+.} (29... Be7 $142 30. Qe6+ Kg7 31. Qg4+ Kf8) 30. Qg4+ {[%emt 0:02:39]} Rg7 {[%emt 0:00:28]} 31. Qe6+ {[%emt 0:00:06]} Kh8 {[%emt 0:00:09]} 32. Rd1 {[%emt 0:00:13][%cal Re4d6]} Rg6 {[%emt 0:00:27]} 33. Qxe5+ {[%emt 0:02:03]} Kg8 {[%emt 0:00:55]} 34. Qxf4 {[%emt 0:02:28]} Bh6 {[%emt 0:00:24]} 35. Rxd6 {[%emt 0:00:22] Weighted Error Value: White=0.12 (very precise) /Black=0.54} 1-0

[Event "24th Hoogeschool Zeeland 2022"]
[Site "Vlissingen"]
[Date "2022.08.06"]
[Round "1.5"]
[White "Oostvogels, Niek"]
[Black "Lalith Babu M R"]
[Result "0-1"]
[ECO "B09"]
[WhiteElo "1913"]
[BlackElo "2549"]
[Annotator "TA"]
[PlyCount "74"]
[EventDate "2022.08.05"]
[EventType "swiss"]
[EventCountry "NED"]
[SourceTitle "playchess.com"]
[Source "ChessBase"]
[SourceQuality "1"]
[TimeControl "40/5400+30:1800+30"]

{[%evp 14,74,75,36,54,-6,15,-33,-32,-81,-64,-58,-63,-68,-72,-88,-63,-72,-63,-63,-58,-128,-94,-133,964,-584,-240,-243,-245,-235,-105,-248,-176,-212,-223,-259,-259,-259,-259,-247,-236,-238,-242,-246,-245,-274,-206,-200,-130,-130,-120,-122,-141,-367,-358,-376,-322,-332,-332,-386,-363,-311,-302]} 1. e4 {[%emt 0:00:07]} g6 {[%emt 0:00:59]} 2. d4 {[%emt 0:01:00]} Bg7 {[%emt 0:00:04]} 3. Nc3 {[%emt 0:00:14]} c6 {[%emt 0:00:05]} 4. Be3 {[%emt 0:00:52]} d6 {[%emt 0:02:04]} 5. f4 {[%emt 0:01:13]} b5 {[%emt 0:01:12]} 6. Bd3 {[%emt 0:01:24]} Nf6 {[%emt 0:00:43]} 7. Nf3 {[%emt 0:00:40]} O-O {[%emt 0:03:01]} 8. Qd2 {[%emt 0:02:40]} Nbd7 {[%emt 0:05:44][%cal Oe7e5] B09: Pirc Defence: Austrian Attack.} 9. f5 {[%emt 0:08:14] [#]} ({White should try} 9. e5 $14 b4 10. Ne2 (10. exf6 bxc3 11. bxc3 Nxf6 $11)) 9... c5 $146 {[%emt 0:09:47]} (9... b4 $5 {[%cal Rb4c3]} 10. Nd1 c5 $11) ({Predecessor:} 9... e5 10. fxe6 fxe6 11. O-O e5 12. dxe5 dxe5 13. a4 b4 14. Na2 a5 15. Nc1 Qe7 {1-0 (44) Ter Sahakyan,S (2582)-Kalashian,D (2419) Jermuk 2013}) 10. Bh6 {[%emt 0:19:25]} (10. Bxb5 $11 Rb8 11. O-O) 10... c4 $15 {[%emt 0:02:56] Black is slightly better.} 11. Bxg7 {[%emt 0:02:32]} (11. Be2 $15 {deserves consideration.}) 11... Kxg7 $17 {[%emt 0:00:12]} 12. Be2 {[%emt 0:06:05]} b4 {[%emt 0:00:40]} 13. Nd5 {[%emt 0:02:05]} Nxe4 {[%emt 0:07:36]} 14. Qxb4 {[%emt 0:04:11]} Rb8 {[%emt 0:04:33]} 15. Qa3 {[%emt 0:04:24]} Nb6 $36 {[%emt 0:06:52][%mdl 2048] Black is more active.} 16. Nxb6 {[%emt 0:05:30]} Qxb6 {[%emt 0:00:10]} ({But not} 16... Rxb6 17. fxg6 hxg6 18. Bxc4 $11) 17. Bxc4 {[%emt 0:02:27]} (17. fxg6 $1 $15 hxg6 18. O-O) 17... Bxf5 {[%emt 0:00:16] And now ...Rfc8 would win.} 18. O-O {[%emt 0:03:15]} Qb5 $2 {[%mdl 8192] [#]} 19. b4 $4 {[%mdl 8192]} Qxb4 (19... Qxc4 $142 20. Qe3 d5) 20. Qxb4 $19 Rxb4 21. Bb3 {[%emt 0:01:30]} Rbb8 {[%emt 0:11:48]} (21... Nc3 $19 {White must now prevent ...Rc8.} 22. Rae1 e6) 22. Bc4 {[%emt 0:33:42]} (22. Rae1 $17 h5 23. d5) 22... Rb2 {[%emt 0:00:06]} 23. Bb3 {[%emt 0:00:00]} Nc3 {[%emt 0:04:03]} 24. Rfe1 {[%emt 0:00:00]} e6 {[%emt 0:00:44]} ({Weaker is} 24... Bxc2 25. Bxc2 Rxc2 26. Rxe7 $17) 25. Re3 {[%emt 0:00:00]} Rc8 {[%emt 0:00:18]} 26. Ne1 {[%emt 0:00:00]} Nb5 {[%emt 0:07:13]} 27. Nd3 {[%emt 0:00:00]} Bxd3 {[%emt 0:00:45]} 28. Rxd3 {[%emt 0:00:00]} Na3 {[%emt 0:02:14] Prevents c4.} 29. Rc1 {[%emt 0:00:00]} d5 {[%emt 0:01:51]} 30. Bxd5 {[%emt 0:00:37]} Nxc2 {[%emt 0:00:29]} ({Worse is} 30... exd5 31. Rxa3 Rcxc2 32. Rxc2 Rxc2 33. Rxa7 $15) 31. Bb3 {[%emt 0:00:29]} Nb4 {[%emt 0:01:04][%csl LRa2,LRc1,LRd3] Black is more active.} 32. Rxc8 {[%emt 0:00:33]} Nxd3 $17 {[%emt 0:00:04] KRB-KRN} 33. h3 $2 {[%emt 0:00:33] [#]} (33. g3 $17 {is the only way for White.}) 33... Nf4 $19 {[%emt 0:00:08]} 34. Rc7 {[%emt 0:00:57]} Ne2+ {[%emt 0:00:54]} 35. Kf1 {[%emt 0:00:25]} Nxd4 {[%emt 0:00:06]} 36. Rxa7 {[%emt 0:01:05]} Nxb3 {[%emt 0:00:07]} 37. axb3 {[%emt 0:00:04]} Rxb3 {[%emt 0:00:03] Weighted Error Value: White=0.51/Black=0.44} 0-1

[Event "24th Hoogeschool Zeeland 2022"]
[Site "Vlissingen"]
[Date "2022.08.06"]
[Round "1.6"]
[White "Beerdsen, Thomas"]
[Black "Arnold, Kiri"]
[Result "1-0"]
[ECO "B30"]
[WhiteElo "2500"]
[BlackElo "1858"]
[Annotator "TA"]
[PlyCount "57"]
[EventDate "2022.08.05"]
[EventType "swiss"]
[EventCountry "NED"]
[SourceTitle "playchess.com"]
[Source "ChessBase"]
[SourceQuality "1"]
[TimeControl "40/5400+30:1800+30"]

{[%evp 9,57,16,31,26,31,29,26,25,31,21,61,39,61,19,62,31,31,28,33,19,25,0,0,0,-11,2,58,50,129,123,133,128,137,136,137,130,130,141,490,468,495,479,577,566,585,571,29997,29998,29998,29999]} 1. e4 {[%emt 0:00:03]} c5 {[%emt 0:00:01]} 2. Nf3 {[%emt 0:00:06]} Nc6 {[%emt 0:00:11]} 3. Bc4 {[%emt 0:00:56]} e6 {[%emt 0:02:48]} 4. O-O {[%emt 0:00:29]} Nf6 {[%emt 0:07:47]} 5. Re1 {[%emt 0:00:32]} d6 {[%emt 0:02:41]} 6. Bb3 {[%emt 0:01:34] B30: Sicilian: 2...Nc6 3 Bb5, lines without ...g6.} Be7 {[%emt 0:01:32]} 7. c3 {[%emt 1:30:20]} O-O {[%emt 0:05:21]} 8. d4 {[%emt 1:30:44] White has an edge.} d5 {[%emt 0:02:27]} 9. e5 {[%emt 0:01:54]} Ne8 {[%emt 0:06:14]} 10. Nbd2 {[%emt 0:03:04]} cxd4 {[%emt 0:04:07]} 11. cxd4 {[%emt 0:00:06]} Qb6 {[%emt 0:01:13]} 12. Nf1 {[%emt 0:00:40]} Bd7 {[%emt 0:01:27]} 13. Bc2 {[%emt 0:00:54]} f5 {[%emt 0:08:32]} 14. exf6 {[%emt 0:01:14]} Nxf6 {[%emt 0:00:22]} 15. Ng3 {[%emt 0:05:23] [#]} Rae8 $146 {[%emt 0:02:38]} ({Predecessor:} 15... Bd6 16. a3 Rae8 17. Bg5 Ng4 18. Be3 Nxe3 19. Rxe3 Bf4 20. Re1 Rf7 21. b4 Ref8 {0-1 (36) Bauer,T (2345)-Hansen,J Kecskemet 1991}) 16. Bg5 {[%emt 0:06:59]} Bd6 {[%emt 0:12:23]} 17. Re3 {[%emt 0:06:03]} Kh8 {[%emt 0:06:33]} (17... Qxb2 $2 18. Rb3 Qxb3 19. axb3 $18) (17... Nb4 $11) 18. Ne5 $14 {[%emt 0:07:36]} Qc7 {[%emt 0:22:59]} (18... Qxd4 $14 19. Bxf6 Qxd1+ 20. Rxd1 Rxf6 21. Nxd7 Rf7) 19. Bxf6 $16 {[%emt 0:15:11]} Rxf6 {[%emt 0:00:17]} 20. Qh5 {[%emt 0:01:13][%csl Gc2][%cal Rh5h7]} h6 {[%emt 0:02:33] [#]} 21. Ng4 {[%emt 0:00:54] 0x0.0024cc601da3dp-1022s more active pieces. Pair of Knights!} Ref8 {[%emt 0:05:57]} 22. Nxf6 $40 {[%emt 0:00:24][%mdl 128] White has strong attack.} Rxf6 {[%emt 0:00:04] [#]} 23. Ne2 {[%emt 0:00:31][%cal Bg3e2,Be2d4,Bd4f3][%mdl 32]} Nxd4 $2 {[%emt 0:03:09][%mdl 8192] A mistake that costs the game.} (23... Qb8 $16 {is a better chance.} 24. Re1 Qd8) 24. Nxd4 $18 {[%emt 0:00:47]} Bc5 {[%emt 0:00:04]} 25. Rc3 {[%emt 0:02:25]} Rxf2 {[%emt 0:00:55]} 26. Kh1 {[%emt 0:01:41] Qg6 is the strong threat.} ({Weaker is} 26. Qg6 Rxc2 27. Rxc2 Bxd4+ 28. Kh1 Qf4 $16) 26... Qf4 {[%emt 0:00:39] ( -> ...Rf1+)} 27. Nf3 {[%emt 0:00:13]} Bd4 {[%emt 0:00:32] [#]} 28. Rc8+ {[%emt 0:00:11][%mdl 512]} Bxc8 {[%emt 0:00:25]} (28... Be8 29. Rxe8+) 29. Qe8+ {[%emt 0:00:07] Weighted Error Value: White=0.07 (flawless) /Black=0.73} 1-0